[Event "Titled Tuesday Blitz May 16 Early 2023"]
[White "Hajiyev, Kanan"]
[Black "Melikhov, Evgeny V."]
[WhiteFideId "13404148"]
[BlackFideId "4122046"]
[WhiteElo "2103"]
[BlackElo "2158"]
[Result "0-1"]
[Round "09"]
[TimeControl "180+2"]
[Date "2023.05.16"]
[WhiteClock "0:00:13"]
[BlackClock "0:00:14"]

1. d4 {[%clk 0:02:53]}  Nf6 {[%clk 0:02:59]} 2. Nf3 {[%clk 0:02:53]}  d5 {[%clk 0:02:59]} 3. c4 {[%clk 0:02:53]}  e6 {[%clk 0:02:59]} 4. cxd5 {[%clk 0:02:54]}  exd5 {[%clk 0:02:59]} 5. Nc3 {[%clk 0:02:54]}  Bb4 {[%clk 0:02:59]} 6. Qc2 {[%clk 0:02:46]}  c5 {[%clk 0:02:52]} 7. a3 {[%clk 0:02:24]}  Bxc3+ {[%clk 0:02:49]} 8. bxc3 {[%clk 0:02:22]}  c4 {[%clk 0:02:48]} 9. Bg5 {[%clk 0:02:16]}  h6 {[%clk 0:02:47]} 10. Bh4 {[%clk 0:02:13]}  g5 {[%clk 0:02:44]} 11. Bg3 {[%clk 0:02:11]}  Ne4 {[%clk 0:02:44]} 12. Nd2 {[%clk 0:02:05]}  Nxd2 {[%clk 0:02:26]} 13. Qxd2 {[%clk 0:02:04]}  Bf5 {[%clk 0:02:25]} 14. f3 {[%clk 0:01:42]}  Nc6 {[%clk 0:02:16]} 15. e4 {[%clk 0:01:41]}  dxe4 {[%clk 0:01:59]} 16. Bxc4 {[%clk 0:01:41]}  exf3 {[%clk 0:01:46]} 17. O-O {[%clk 0:01:39]}  O-O {[%clk 0:01:36]} 18. Rxf3 {[%clk 0:01:34]}  Be4 {[%clk 0:01:31]} 19. Rf2 {[%clk 0:01:19]}  Kg7 {[%clk 0:01:20]} 20. Raf1 {[%clk 0:01:07]}  f5 {[%clk 0:01:16]} 21. Qb2 {[%clk 0:00:43]}  f4 {[%clk 0:00:52]} 22. Qxb7+ {[%clk 0:00:37]}  Kg6 {[%clk 0:00:52]} 23. Re2 {[%clk 0:00:31]}  fxg3 {[%clk 0:00:46]} 24. Bf7+ {[%clk 0:00:22]}  Kg7 {[%clk 0:00:37]} 25. Rxe4 {[%clk 0:00:19]}  Na5 {[%clk 0:00:34]} 26. Qd5 {[%clk 0:00:12]}  Qxd5 {[%clk 0:00:33]} 27. Bxd5 {[%clk 0:00:12]}  Rxf1+ {[%clk 0:00:32]} 28. Kxf1 {[%clk 0:00:09]}  gxh2 {[%clk 0:00:33]} 29. Re7+ {[%clk 0:00:10]}  Kf6 {[%clk 0:00:29]} 30. g4 {[%clk 0:00:10]}  Rd8 {[%clk 0:00:26]} 31. Rf7+ {[%clk 0:00:08]}  Kg6 {[%clk 0:00:26]} 32. Kg2 {[%clk 0:00:03]}  Rxd5 {[%clk 0:00:26]} 33. Rxa7 {[%clk 0:00:04]}  Nc4 {[%clk 0:00:23]} 34. Kxh2 {[%clk 0:00:04]}  Ra5 {[%clk 0:00:22]} 35. Rxa5 {[%clk 0:00:03]}  Nxa5 {[%clk 0:00:22]} 36. Kg3 {[%clk 0:00:04]}  Kf6 {[%clk 0:00:22]} 37. Kf3 {[%clk 0:00:04]}  Ke6 {[%clk 0:00:22]} 38. Ke4 {[%clk 0:00:04]}  Nc4 {[%clk 0:00:21]} 39. a4 {[%clk 0:00:04]}  Na5 {[%clk 0:00:18]} 40. Ke3 {[%clk 0:00:02]}  Kd5 {[%clk 0:00:18]} 41. Kd3 {[%clk 0:00:03]}  Nc4 {[%clk 0:00:18]} 42. Ke2 {[%clk 0:00:02]}  Ke4 {[%clk 0:00:18]} 43. Kd1 {[%clk 0:00:02]}  Kd3 {[%clk 0:00:15]} 44. d5 {[%clk 0:00:02]}  Kxc3 {[%clk 0:00:14]} 45. d6 {[%clk 0:00:02]}  Nxd6 {[%clk 0:00:14]} 46. a5 {[%clk 0:00:03]}  Nb5 {[%clk 0:00:13]} 47. a6 {[%clk 0:00:04]}  Kd3 {[%clk 0:00:13]} 48. Ke1 {[%clk 0:00:05]}  Ke3 {[%clk 0:00:13]} 49. Kd1 {[%clk 0:00:05]}  Kf4 {[%clk 0:00:13]} 50. Kc2 {[%clk 0:00:06]}  Kxg4 {[%clk 0:00:12]} 51. Kd3 {[%clk 0:00:07]}  h5 {[%clk 0:00:12]} 52. Kc4 {[%clk 0:00:08]}  Na7 {[%clk 0:00:12]} 53. Kc5 {[%clk 0:00:08]}  h4 {[%clk 0:00:12]} 54. Kb6 {[%clk 0:00:09]}  h3 {[%clk 0:00:12]} 55. Kxa7 {[%clk 0:00:09]}  h2 {[%clk 0:00:12]} 56. Kb6 {[%clk 0:00:10]}  h1=Q {[%clk 0:00:13]} 57. a7 {[%clk 0:00:11]}  Qa8 {[%clk 0:00:13]} 58. Ka6 {[%clk 0:00:11]}  Kf3 {[%clk 0:00:12]} 59. Kb6 {[%clk 0:00:12]}  g4 {[%clk 0:00:13]} 60. Ka6 {[%clk 0:00:13]}  g3 {[%clk 0:00:13]} 61. Kb6 {[%clk 0:00:13]}  g2 {[%clk 0:00:13]} 62. Ka6 {[%clk 0:00:14]}  g1=Q {[%clk 0:00:14]} 63. Kb5 {[%clk 0:00:12]}  Qgxa7 {[%clk 0:00:13]} 64. Kc4 {[%clk 0:00:13]}  Qd7 {[%clk 0:00:13]} 65. Kc5 {[%clk 0:00:13]}  Qac8+ {[%clk 0:00:13]} 66. Kb4 {[%clk 0:00:13]}  Qdb7+ {[%clk 0:00:14]} 67. Ka5 {[%clk 0:00:13]}  Qca8# {[%clk 0:00:14]} 0-1


[Site "https://www.chess.com"]

[Event "Titled Tuesday Blitz May 16 Early 2023"]
[White "Buchenau, Frank"]
[Black "Gonzalez, Francisco Silva"]
[WhiteFideId "4604350"]
[BlackFideId "1512285"]
[WhiteElo "2157"]
[BlackElo "2074"]
[Result "1-0"]
[Round "09"]
[TimeControl "180+2"]
[Date "2023.05.16"]
[WhiteClock "0:00:32"]
[BlackClock "0:00:14"]

1. e4 {[%clk 0:03:00]}  e5 {[%clk 0:03:00]} 2. Bc4 {[%clk 0:03:00]}  Nf6 {[%clk 0:02:59]} 3. d3 {[%clk 0:03:00]}  Bc5 {[%clk 0:02:59]} 4. Nf3 {[%clk 0:03:00]}  Nc6 {[%clk 0:02:56]} 5. O-O {[%clk 0:03:00]}  d6 {[%clk 0:02:56]} 6. c3 {[%clk 0:03:00]}  a6 {[%clk 0:02:56]} 7. Bb3 {[%clk 0:02:59]}  Ba7 {[%clk 0:02:56]} 8. Nbd2 {[%clk 0:02:59]}  h6 {[%clk 0:02:54]} 9. Re1 {[%clk 0:02:59]}  Ne7 {[%clk 0:02:54]} 10. Nf1 {[%clk 0:02:58]}  Ng6 {[%clk 0:02:54]} 11. Ng3 {[%clk 0:02:58]}  Ng4 {[%clk 0:02:54]} 12. d4 {[%clk 0:02:57]}  O-O {[%clk 0:02:50]} 13. h3 {[%clk 0:02:57]}  Nf6 {[%clk 0:02:49]} 14. Be3 {[%clk 0:02:56]}  Re8 {[%clk 0:02:48]} 15. Bc2 {[%clk 0:02:54]}  c5 {[%clk 0:02:43]} 16. Qd2 {[%clk 0:02:45]}  cxd4 {[%clk 0:02:42]} 17. cxd4 {[%clk 0:02:44]}  exd4 {[%clk 0:02:41]} 18. Nxd4 {[%clk 0:02:39]}  Bc5 {[%clk 0:02:30]} 19. Rad1 {[%clk 0:02:35]}  Qb6 {[%clk 0:02:29]} 20. Nb3 {[%clk 0:02:21]}  Bxe3 {[%clk 0:02:17]} 21. Rxe3 {[%clk 0:02:13]}  d5 {[%clk 0:01:59]} 22. exd5 {[%clk 0:02:03]}  Rxe3 {[%clk 0:01:48]} 23. Qxe3 {[%clk 0:02:03]}  Qd6 {[%clk 0:01:47]} 24. Qc5 {[%clk 0:01:49]}  Qe5 {[%clk 0:01:45]} 25. Qd4 {[%clk 0:01:42]}  Qd6 {[%clk 0:01:45]} 26. Nc5 {[%clk 0:01:32]}  Nf4 {[%clk 0:01:43]} 27. Nce4 {[%clk 0:01:03]}  Nxe4 {[%clk 0:01:41]} 28. Qxe4 {[%clk 0:01:01]}  Bd7 {[%clk 0:01:38]} 29. Qh7+ {[%clk 0:00:53]}  Kf8 {[%clk 0:01:39]} 30. Qh8+ {[%clk 0:00:49]}  Ke7 {[%clk 0:01:39]} 31. Re1+ {[%clk 0:00:43]}  Kf6 {[%clk 0:01:37]} 32. Ne4+ {[%clk 0:00:41]}  Ke5 {[%clk 0:01:33]} 33. Nxd6+ {[%clk 0:00:34]}  Ne2+ {[%clk 0:01:32]} 34. Rxe2+ {[%clk 0:00:34]}  Kd4 {[%clk 0:01:29]} 35. Qxa8 {[%clk 0:00:33]}  Ba4 {[%clk 0:00:14]} 36. Bxa4 {[%clk 0:00:32]} 1-0


[Site "https://www.chess.com"]

[Event "Titled Tuesday Blitz May 16 Early 2023"]
[White "Horak, Martin"]
[Black "Llanos, Guillermo"]
[WhiteFideId "367095"]
[BlackFideId "100358"]
[WhiteElo "2091"]
[BlackElo "2225"]
[Result "1-0"]
[Round "09"]
[TimeControl "180+2"]
[Date "2023.05.16"]
[WhiteClock "0:00:17"]
[BlackClock "0:00:00"]

1. Nf3 {[%clk 0:03:00]}  d5 {[%clk 0:02:55]} 2. e3 {[%clk 0:03:00]}  c5 {[%clk 0:02:48]} 3. b3 {[%clk 0:03:00]}  Nf6 {[%clk 0:02:44]} 4. Bb2 {[%clk 0:03:00]}  g6 {[%clk 0:02:44]} 5. Bb5+ {[%clk 0:02:57]}  Bd7 {[%clk 0:02:43]} 6. Bxf6 {[%clk 0:02:53]}  exf6 {[%clk 0:02:43]} 7. Bxd7+ {[%clk 0:02:53]}  Qxd7 {[%clk 0:02:41]} 8. d4 {[%clk 0:02:54]}  Nc6 {[%clk 0:02:40]} 9. c3 {[%clk 0:02:52]}  cxd4 {[%clk 0:02:30]} 10. Nxd4 {[%clk 0:02:43]}  Bc5 {[%clk 0:02:17]} 11. O-O {[%clk 0:02:40]}  O-O {[%clk 0:02:17]} 12. Nd2 {[%clk 0:02:38]}  Rfe8 {[%clk 0:02:09]} 13. N2f3 {[%clk 0:02:36]}  Rac8 {[%clk 0:02:08]} 14. Rc1 {[%clk 0:02:34]}  Ne5 {[%clk 0:02:02]} 15. Qd2 {[%clk 0:02:16]}  Ba3 {[%clk 0:01:29]} 16. Rc2 {[%clk 0:02:15]}  Bf8 {[%clk 0:01:28]} 17. Rd1 {[%clk 0:02:14]}  Red8 {[%clk 0:01:27]} 18. Ne1 {[%clk 0:01:59]}  Bd6 {[%clk 0:01:08]} 19. Ne2 {[%clk 0:01:53]}  Bb8 {[%clk 0:01:00]} 20. Nf4 {[%clk 0:01:53]}  Qf5 {[%clk 0:00:55]} 21. Nxd5 {[%clk 0:01:34]}  Kg7 {[%clk 0:00:51]} 22. c4 {[%clk 0:01:34]}  b5 {[%clk 0:00:50]} 23. f4 {[%clk 0:01:08]}  Ng4 {[%clk 0:00:39]} 24. h3 {[%clk 0:01:07]}  Rxd5 {[%clk 0:00:24]} 25. cxd5 {[%clk 0:01:01]}  Nxe3 {[%clk 0:00:20]} 26. Rxc8 {[%clk 0:00:55]}  Bxf4 {[%clk 0:00:20]} 27. Rdc1 {[%clk 0:00:37]}  Nxd5 {[%clk 0:00:18]} 28. Qd3 {[%clk 0:00:32]}  Be3+ {[%clk 0:00:17]} 29. Kh1 {[%clk 0:00:32]}  Qf2 {[%clk 0:00:13]} 30. Nf3 {[%clk 0:00:18]}  Bxc1 {[%clk 0:00:00]} 31. Rxc1 {[%clk 0:00:17]} 1-0


[Site "https://www.chess.com"]

[Event "Titled Tuesday Blitz May 16 Early 2023"]
[White "Ezat, Mohamed"]
[Black "Dishman, Stephen"]
[WhiteFideId "10600906"]
[BlackFideId "403024"]
[WhiteElo "2386"]
[BlackElo "2204"]
[Result "1-0"]
[Round "09"]
[TimeControl "180+2"]
[Date "2023.05.16"]
[WhiteClock "0:01:29"]
[BlackClock "0:00:35"]

1. d3 {[%clk 0:03:00]}  d5 {[%clk 0:02:59]} 2. Nd2 {[%clk 0:02:59]}  e5 {[%clk 0:02:59]} 3. e4 {[%clk 0:02:59]}  Nf6 {[%clk 0:02:59]} 4. Ngf3 {[%clk 0:02:59]}  Bd6 {[%clk 0:02:58]} 5. g3 {[%clk 0:03:00]}  c6 {[%clk 0:02:58]} 6. Bg2 {[%clk 0:03:00]}  O-O {[%clk 0:02:58]} 7. O-O {[%clk 0:03:00]}  Re8 {[%clk 0:02:58]} 8. Re1 {[%clk 0:03:00]}  Nbd7 {[%clk 0:02:58]} 9. c3 {[%clk 0:03:00]}  a5 {[%clk 0:02:58]} 10. h3 {[%clk 0:03:00]}  a4 {[%clk 0:02:57]} 11. Nf1 {[%clk 0:02:57]}  Qc7 {[%clk 0:02:56]} 12. Ne3 {[%clk 0:02:56]}  dxe4 {[%clk 0:02:56]} 13. dxe4 {[%clk 0:02:55]}  Bc5 {[%clk 0:02:50]} 14. Nf5 {[%clk 0:02:53]}  g6 {[%clk 0:02:42]} 15. Nh6+ {[%clk 0:02:52]}  Kg7 {[%clk 0:02:42]} 16. Nh4 {[%clk 0:02:46]}  Nf8 {[%clk 0:02:38]} 17. Qf3 {[%clk 0:02:33]}  Ng8 {[%clk 0:02:19]} 18. Nxg8 {[%clk 0:02:19]}  Kxg8 {[%clk 0:02:19]} 19. Bh6 {[%clk 0:02:20]}  Ne6 {[%clk 0:02:06]} 20. Bf1 {[%clk 0:02:18]}  Bf8 {[%clk 0:02:04]} 21. Bxf8 {[%clk 0:02:16]}  Rxf8 {[%clk 0:02:04]} 22. Qe3 {[%clk 0:02:13]}  b5 {[%clk 0:01:57]} 23. Qh6 {[%clk 0:02:09]}  Qe7 {[%clk 0:01:52]} 24. Nf3 {[%clk 0:02:09]}  f6 {[%clk 0:01:49]} 25. Rad1 {[%clk 0:02:07]}  Ba6 {[%clk 0:01:45]} 26. h4 {[%clk 0:02:07]}  Rad8 {[%clk 0:01:41]} 27. Bh3 {[%clk 0:02:07]}  Nc5 {[%clk 0:01:36]} 28. h5 {[%clk 0:02:01]}  Qg7 {[%clk 0:01:34]} 29. Qe3 {[%clk 0:01:59]}  Qe7 {[%clk 0:01:33]} 30. hxg6 {[%clk 0:01:57]}  hxg6 {[%clk 0:01:34]} 31. Nh4 {[%clk 0:01:57]}  Kg7 {[%clk 0:01:31]} 32. Bf5 {[%clk 0:01:54]}  Rxd1 {[%clk 0:01:19]} 33. Rxd1 {[%clk 0:01:53]}  Rd8 {[%clk 0:01:20]} 34. Rxd8 {[%clk 0:01:51]}  Qxd8 {[%clk 0:01:20]} 35. Qxc5 {[%clk 0:01:52]}  gxf5 {[%clk 0:01:13]} 36. Nxf5+ {[%clk 0:01:51]}  Kg6 {[%clk 0:01:13]} 37. Qe3 {[%clk 0:01:47]}  Qd1+ {[%clk 0:01:06]} 38. Kh2 {[%clk 0:01:45]}  Qh5+ {[%clk 0:01:07]} 39. Nh4+ {[%clk 0:01:44]}  Kf7 {[%clk 0:00:58]} 40. Qa7+ {[%clk 0:01:44]}  Ke6 {[%clk 0:00:56]} 41. Qxa6 {[%clk 0:01:44]}  Kd6 {[%clk 0:00:54]} 42. Qc8 {[%clk 0:01:42]}  Qe2 {[%clk 0:00:52]} 43. Qf8+ {[%clk 0:01:38]}  Ke6 {[%clk 0:00:51]} 44. Qc8+ {[%clk 0:01:35]}  Kd6 {[%clk 0:00:51]} 45. Qf5 {[%clk 0:01:33]}  Kc5 {[%clk 0:00:43]} 46. Qxf6 {[%clk 0:01:33]}  Qxe4 {[%clk 0:00:43]} 47. Nf3 {[%clk 0:01:31]}  Qe2 {[%clk 0:00:35]} 48. Qxe5+ {[%clk 0:01:29]} 1-0


[Site "https://www.chess.com"]

[Event "Titled Tuesday Blitz May 16 Early 2023"]
[White "Weber, Samuel"]
[Black "Rodchenkov, Sergey D."]
[WhiteFideId "12924008"]
[BlackFideId "4168712"]
[WhiteElo "2162"]
[BlackElo "2277"]
[Result "0-1"]
[Round "09"]
[TimeControl "180+2"]
[Date "2023.05.16"]
[WhiteClock "0:00:00"]
[BlackClock "0:00:50"]

1. b3 {[%clk 0:02:58]}  d5 {[%clk 0:02:59]} 2. Bb2 {[%clk 0:02:58]}  Nf6 {[%clk 0:02:59]} 3. Nf3 {[%clk 0:02:58]}  Bg4 {[%clk 0:02:59]} 4. e3 {[%clk 0:02:58]}  Nbd7 {[%clk 0:02:59]} 5. Be2 {[%clk 0:02:58]}  c6 {[%clk 0:02:58]} 6. O-O {[%clk 0:02:57]}  e6 {[%clk 0:02:59]} 7. c4 {[%clk 0:02:58]}  Be7 {[%clk 0:02:58]} 8. Nc3 {[%clk 0:02:58]}  O-O {[%clk 0:02:59]} 9. h3 {[%clk 0:02:59]}  Bf5 {[%clk 0:02:59]} 10. d4 {[%clk 0:03:00]}  h6 {[%clk 0:02:58]} 11. Bd3 {[%clk 0:02:57]}  Bxd3 {[%clk 0:02:58]} 12. Qxd3 {[%clk 0:02:57]}  Qb6 {[%clk 0:02:55]} 13. cxd5 {[%clk 0:02:37]}  exd5 {[%clk 0:02:47]} 14. Na4 {[%clk 0:02:34]}  Qc7 {[%clk 0:02:44]} 15. Ne5 {[%clk 0:02:34]}  Bd6 {[%clk 0:02:40]} 16. Nxd7 {[%clk 0:02:28]}  Qxd7 {[%clk 0:02:40]} 17. Nc5 {[%clk 0:02:28]}  Qe7 {[%clk 0:02:41]} 18. Qf5 {[%clk 0:02:24]}  Rae8 {[%clk 0:02:25]} 19. Rae1 {[%clk 0:02:23]}  g6 {[%clk 0:02:23]} 20. Qf3 {[%clk 0:02:22]}  Kg7 {[%clk 0:02:23]} 21. Re2 {[%clk 0:01:55]}  Kh7 {[%clk 0:02:23]} 22. Rfe1 {[%clk 0:01:54]}  Ne4 {[%clk 0:02:20]} 23. Nxe4 {[%clk 0:01:52]}  dxe4 {[%clk 0:02:21]} 24. Qg4 {[%clk 0:00:57]}  f5 {[%clk 0:02:21]} 25. Qg3 {[%clk 0:00:53]}  Bxg3 {[%clk 0:02:20]} 26. fxg3 {[%clk 0:00:54]}  Qg5 {[%clk 0:02:18]} 27. Kh2 {[%clk 0:00:53]}  h5 {[%clk 0:02:18]} 28. h4 {[%clk 0:00:53]}  Qe7 {[%clk 0:02:18]} 29. Rd2 {[%clk 0:00:44]}  g5 {[%clk 0:02:17]} 30. d5 {[%clk 0:00:42]}  gxh4 {[%clk 0:02:16]} 31. d6 {[%clk 0:00:42]}  hxg3+ {[%clk 0:02:17]} 32. Kxg3 {[%clk 0:00:41]}  Rg8+ {[%clk 0:02:14]} 33. Kh2 {[%clk 0:00:37]}  Qg5 {[%clk 0:02:12]} 34. Red1 {[%clk 0:00:28]}  Rd8 {[%clk 0:02:01]} 35. d7 {[%clk 0:00:28]}  h4 {[%clk 0:02:01]} 36. Be5 {[%clk 0:00:28]}  h3 {[%clk 0:01:48]} 37. gxh3 {[%clk 0:00:20]}  Qxe3 {[%clk 0:01:39]} 38. Bc7 {[%clk 0:00:18]}  f4 {[%clk 0:01:08]} 39. Bxd8 {[%clk 0:00:03]}  Qg3+ {[%clk 0:01:06]} 40. Kh1 {[%clk 0:00:03]}  Qf3+ {[%clk 0:01:07]} 41. Kh2 {[%clk 0:00:03]}  Rxd8 {[%clk 0:01:07]} 42. Rg1 {[%clk 0:00:03]}  e3 {[%clk 0:01:03]} 43. Rd6 {[%clk 0:00:03]}  e2 {[%clk 0:00:57]} 44. Rdg6 {[%clk 0:00:00]}  Rxd7 {[%clk 0:00:50]} 0-1


[Site "https://www.chess.com"]

[Event "Titled Tuesday Blitz May 16 Early 2023"]
[White "Rodriguez Santiago, Jaime"]
[Black "LangesNasenhaar"]
[WhiteFideId "3100898"]
[WhiteElo "2025"]
[BlackElo "2425"]
[Result "1-0"]
[Round "09"]
[TimeControl "180+2"]
[Date "2023.05.16"]
[WhiteClock "0:00:31"]
[BlackClock "0:00:00"]

1. c4 {[%clk 0:03:00]}  e6 {[%clk 0:02:59]} 2. d4 {[%clk 0:02:59]}  d5 {[%clk 0:03:00]} 3. Nc3 {[%clk 0:02:59]}  c5 {[%clk 0:03:00]} 4. dxc5 {[%clk 0:02:55]}  d4 {[%clk 0:03:00]} 5. Ne4 {[%clk 0:02:48]}  Nc6 {[%clk 0:02:57]} 6. Nf3 {[%clk 0:02:42]}  f5 {[%clk 0:02:53]} 7. Nd6+ {[%clk 0:02:42]}  Bxd6 {[%clk 0:02:54]} 8. cxd6 {[%clk 0:02:42]}  Qxd6 {[%clk 0:02:54]} 9. g3 {[%clk 0:02:32]}  e5 {[%clk 0:02:50]} 10. Bg2 {[%clk 0:02:25]}  e4 {[%clk 0:02:50]} 11. Nd2 {[%clk 0:02:21]}  Nf6 {[%clk 0:02:46]} 12. O-O {[%clk 0:02:20]}  O-O {[%clk 0:02:47]} 13. a3 {[%clk 0:02:18]}  a5 {[%clk 0:02:45]} 14. b3 {[%clk 0:02:19]}  Be6 {[%clk 0:02:43]} 15. Bb2 {[%clk 0:02:18]}  Rfd8 {[%clk 0:02:43]} 16. Qc2 {[%clk 0:02:13]}  Rac8 {[%clk 0:02:38]} 17. Rac1 {[%clk 0:02:09]}  h6 {[%clk 0:02:35]} 18. Rfd1 {[%clk 0:02:08]}  Qe7 {[%clk 0:02:30]} 19. c5 {[%clk 0:01:52]}  Ng4 {[%clk 0:02:20]} 20. h3 {[%clk 0:01:46]}  Nge5 {[%clk 0:02:07]} 21. Nc4 {[%clk 0:01:35]}  Bxc4 {[%clk 0:02:03]} 22. bxc4 {[%clk 0:01:35]}  Qxc5 {[%clk 0:02:02]} 23. Qb3 {[%clk 0:01:30]}  b6 {[%clk 0:01:56]} 24. g4 {[%clk 0:01:23]}  fxg4 {[%clk 0:01:47]} 25. Bxe4 {[%clk 0:01:22]}  gxh3 {[%clk 0:01:25]} 26. Bd5+ {[%clk 0:01:21]}  Kh8 {[%clk 0:01:22]} 27. Qxh3 {[%clk 0:01:19]}  Rf8 {[%clk 0:01:06]} 28. Rf1 {[%clk 0:01:04]}  Rcd8 {[%clk 0:01:06]} 29. Kh1 {[%clk 0:00:59]}  Rxd5 {[%clk 0:01:04]} 30. cxd5 {[%clk 0:00:59]}  Qxd5+ {[%clk 0:01:05]} 31. f3 {[%clk 0:00:58]}  d3 {[%clk 0:01:01]} 32. e4 {[%clk 0:00:50]}  Qb3 {[%clk 0:00:51]} 33. Ba1 {[%clk 0:00:46]}  Kh7 {[%clk 0:00:20]} 34. f4 {[%clk 0:00:41]}  Qa4 {[%clk 0:00:05]} 35. fxe5 {[%clk 0:00:31]}  Qxe4+ {[%clk 0:00:05]} 36. Qg2 {[%clk 0:00:31]}  Qxg2+ {[%clk 0:00:03]} 37. Kxg2 {[%clk 0:00:31]}  Rxf1 {[%clk 0:00:00]} 38. Kxf1 {[%clk 0:00:31]} 1-0


[Site "https://www.chess.com"]

[Event "Titled Tuesday Blitz May 16 Early 2023"]
[White "Jodorcovsky Werjivker, Paulo"]
[Black "Shubenkova, Veronika"]
[WhiteFideId "3700305"]
[BlackFideId "44124040"]
[WhiteElo "2120"]
[BlackElo "2060"]
[Result "1-0"]
[Round "09"]
[TimeControl "180+2"]
[Date "2023.05.16"]
[WhiteClock "0:00:04"]
[BlackClock "0:00:20"]

1. e4 {[%clk 0:03:00]}  e6 {[%clk 0:02:14]} 2. d4 {[%clk 0:02:57]}  d5 {[%clk 0:02:15]} 3. Nd2 {[%clk 0:02:55]}  Nf6 {[%clk 0:02:15]} 4. e5 {[%clk 0:02:54]}  Nfd7 {[%clk 0:02:15]} 5. f4 {[%clk 0:02:48]}  c5 {[%clk 0:02:15]} 6. c3 {[%clk 0:02:48]}  Nc6 {[%clk 0:02:16]} 7. Ndf3 {[%clk 0:02:47]}  a6 {[%clk 0:02:16]} 8. a3 {[%clk 0:02:30]}  b5 {[%clk 0:02:16]} 9. b3 {[%clk 0:02:30]}  Qb6 {[%clk 0:02:15]} 10. h4 {[%clk 0:02:20]}  Bb7 {[%clk 0:02:13]} 11. Nh3 {[%clk 0:02:18]}  h6 {[%clk 0:02:12]} 12. Be3 {[%clk 0:02:17]}  a5 {[%clk 0:02:11]} 13. Bd3 {[%clk 0:02:15]}  b4 {[%clk 0:02:11]} 14. axb4 {[%clk 0:02:14]}  axb4 {[%clk 0:02:11]} 15. Rxa8+ {[%clk 0:02:13]}  Bxa8 {[%clk 0:02:12]} 16. c4 {[%clk 0:02:13]}  cxd4 {[%clk 0:02:11]} 17. cxd5 {[%clk 0:02:07]}  dxe3 {[%clk 0:02:07]} 18. dxc6 {[%clk 0:02:04]}  Bxc6 {[%clk 0:02:07]} 19. Qe2 {[%clk 0:01:57]}  Bc5 {[%clk 0:02:05]} 20. O-O {[%clk 0:01:55]}  O-O {[%clk 0:02:03]} 21. Kh2 {[%clk 0:01:54]}  f6 {[%clk 0:02:02]} 22. h5 {[%clk 0:01:43]}  fxe5 {[%clk 0:02:02]} 23. Nxe5 {[%clk 0:01:42]}  Nxe5 {[%clk 0:01:58]} 24. fxe5 {[%clk 0:01:43]}  Rxf1 {[%clk 0:01:48]} 25. Qxf1 {[%clk 0:01:44]}  Bd4 {[%clk 0:01:48]} 26. Bg6 {[%clk 0:01:36]}  Bxe5+ {[%clk 0:01:48]} 27. Kh1 {[%clk 0:01:33]}  Qb7 {[%clk 0:01:46]} 28. Ng1 {[%clk 0:01:26]}  Bf6 {[%clk 0:01:43]} 29. Ne2 {[%clk 0:01:26]}  Be4 {[%clk 0:01:41]} 30. Nf4 {[%clk 0:01:21]}  Bxg6 {[%clk 0:01:39]} 31. hxg6 {[%clk 0:01:22]}  Qc6 {[%clk 0:01:28]} 32. Nh5 {[%clk 0:01:01]}  Qc3 {[%clk 0:01:14]} 33. Qf3 {[%clk 0:00:52]}  Qa1+ {[%clk 0:01:11]} 34. Kh2 {[%clk 0:00:51]}  Qe5+ {[%clk 0:01:07]} 35. Ng3 {[%clk 0:00:36]}  Qb8 {[%clk 0:00:59]} 36. Kh1 {[%clk 0:00:27]}  Qa7 {[%clk 0:00:56]} 37. Ne4 {[%clk 0:00:19]}  Qa1+ {[%clk 0:00:54]} 38. Kh2 {[%clk 0:00:19]}  Qd4 {[%clk 0:00:48]} 39. Ng3 {[%clk 0:00:11]}  Qa7 {[%clk 0:00:40]} 40. Qe4 {[%clk 0:00:05]}  e5 {[%clk 0:00:24]} 41. Qc4+ {[%clk 0:00:05]}  Kf8 {[%clk 0:00:24]} 42. Qc8+ {[%clk 0:00:04]}  Ke7 {[%clk 0:00:20]} 43. Nf5# {[%clk 0:00:04]} 1-0


[Site "https://www.chess.com"]

[Event "Titled Tuesday Blitz May 16 Early 2023"]
[White "Clawitter, Craig"]
[Black "Rottenwohrer Suarez, Juan"]
[WhiteFideId "2023105"]
[BlackFideId "32068182"]
[WhiteElo "2272"]
[BlackElo "2174"]
[Result "0-1"]
[Round "09"]
[TimeControl "180+2"]
[Date "2023.05.16"]
[WhiteClock "0:00:00"]
[BlackClock "0:00:54"]

1. e4 {[%clk 0:03:00]}  c5 {[%clk 0:03:00]} 2. Nf3 {[%clk 0:03:00]}  g6 {[%clk 0:03:01]} 3. d4 {[%clk 0:03:01]}  cxd4 {[%clk 0:03:01]} 4. Nxd4 {[%clk 0:03:02]}  Nc6 {[%clk 0:03:00]} 5. Nc3 {[%clk 0:03:01]}  Bg7 {[%clk 0:03:01]} 6. Be3 {[%clk 0:03:00]}  Nf6 {[%clk 0:03:00]} 7. Bc4 {[%clk 0:03:01]}  O-O {[%clk 0:02:53]} 8. Bb3 {[%clk 0:02:59]}  d5 {[%clk 0:02:53]} 9. exd5 {[%clk 0:02:52]}  Na5 {[%clk 0:02:54]} 10. O-O {[%clk 0:02:27]}  a6 {[%clk 0:02:46]} 11. Nde2 {[%clk 0:02:17]}  b5 {[%clk 0:02:45]} 12. Qd2 {[%clk 0:02:02]}  Bb7 {[%clk 0:02:41]} 13. Rad1 {[%clk 0:02:00]}  Nxb3 {[%clk 0:02:37]} 14. axb3 {[%clk 0:02:01]}  b4 {[%clk 0:02:37]} 15. Na4 {[%clk 0:01:56]}  Qxd5 {[%clk 0:02:36]} 16. f3 {[%clk 0:01:27]}  a5 {[%clk 0:02:15]} 17. Nb6 {[%clk 0:01:17]}  Qxd2 {[%clk 0:02:12]} 18. Rxd2 {[%clk 0:01:18]}  Ra6 {[%clk 0:01:31]} 19. Rfd1 {[%clk 0:01:09]}  h5 {[%clk 0:01:30]} 20. Rd8 {[%clk 0:00:58]}  Rxd8 {[%clk 0:01:14]} 21. Rxd8+ {[%clk 0:00:59]}  Kh7 {[%clk 0:01:14]} 22. Rb8 {[%clk 0:00:34]}  Bc6 {[%clk 0:01:14]} 23. Rc8 {[%clk 0:00:32]}  Nd5 {[%clk 0:01:10]} 24. Bd4 {[%clk 0:00:09]}  Bb7 {[%clk 0:00:59]} 25. Rb8 {[%clk 0:00:05]}  Bxd4+ {[%clk 0:00:59]} 26. Nxd4 {[%clk 0:00:05]}  Rxb6 {[%clk 0:01:00]} 27. c4 {[%clk 0:00:04]}  bxc3 {[%clk 0:00:59]} 28. bxc3 {[%clk 0:00:05]}  Nxc3 {[%clk 0:00:58]} 29. Kf2 {[%clk 0:00:00]}  e5 {[%clk 0:00:54]} 0-1


[Site "https://www.chess.com"]